bitfinex-derivatives/quotes_ETHF0:USTF0_20260115
["timestamp","ask_amount","ask_price","bid_price","bid_amount"]
[1768443121697,0.13710062,3327.9,3326.6,0.96176959]
[1768443121905,2.85010062,3328.3,3326.6,0.96176959]
[1768443122098,0.13710062,3328.3,3326.6,0.96176959]
[1768443122403,0.13710062,3328.8,3327.1,0.13557987]
[1768443122700,0.00450417,3328.3,3327.3,0.96176959]
[1768443125306,0.00450417,3328.3,3327.5,0.96357932]
[1768443126615,0.13710062,3328.8,3327.8,0.96357932]
[1768443126805,0.83251664,3328.7,3327.8,0.96357932]
[1768443127007,0.83251664,3328.6,3327.8,0.96357932]
[1768443127202,0.83251664,3328.5,3327.8,0.96357932]
[1768443127410,0.13710062,3328.8,3327.8,0.96357932]
[1768443127715,0.00450417,3328.6,3328.0,0.00450417]
[1768443127913,0.8324484,3328.5,3328.0,0.00450417]
[1768443128120,0.00450417,3328.6,3328.0,0.00450417]
[1768443128712,0.00276035,3329.2,3328.4,0.96357932]
[1768443128913,0.83242394,3329.1,3328.4,0.96357932]
[1768443129218,0.83242394,3329.0,3328.4,0.96357932]
[1768443129420,0.00276035,3329.2,3328.4,0.96357932]
[1768443129616,0.83207361,3329.1,3328.4,0.96357932]
[1768443129821,0.00450417,3329.1,3328.2,0.96357932]
[1768443131221,0.00450417,3329.1,3328.0,0.00450417]
[1768443131520,0.00450417,3329.1,3328.0,0.96808349]
[1768443132222,0.14160479,3329.1,3328.0,0.00450417]
[1768443132417,0.96357932,3329.0,3328.0,0.00450417]
[1768443132616,0.96417937,3328.9,3328.0,0.00450417]
[1768443132817,0.13710062,3328.4,3328.0,0.00450417]
[1768443133018,0.13710062,3328.4,3327.3,0.96357932]
[1768443133524,0.96357932,3328.7,3327.3,0.96357932]
[1768443133724,0.82699763,3328.6,3327.3,0.96357932]
[1768443134026,0.96357932,3328.7,3327.6,0.00450417]
[1768443134324,0.82699848,3328.6,3327.6,0.00450417]
[1768443134521,0.96357932,3328.7,3327.6,0.00450417]
[1768443134722,0.82702551,3328.6,3327.6,0.00450417]
[1768443134920,0.96357932,3328.7,3327.6,0.00450417]
[1768443135124,0.8270225,3328.6,3327.6,0.00450417]
[1768443135326,0.96357932,3328.7,3327.6,0.00450417]
[1768443135519,0.82705621,3328.6,3327.6,0.00450417]
[1768443135720,0.13710062,3328.8,3327.6,0.00450417]
[1768443135919,0.82705436,3328.7,3327.6,0.00450417]
[1768443136136,0.82705436,3328.6,3327.6,0.00450417]
[1768443136427,0.13710062,3328.8,3327.6,0.00450417]
[1768443136622,0.82710401,3328.7,3327.6,0.00450417]
[1768443136825,0.82710401,3328.6,3327.6,0.00450417]
[1768443137026,0.13710062,3328.6,3327.6,0.00450417]
[1768443137326,0.13710062,3328.4,3327.6,0.00450417]
[1768443147834,0.96357932,3327.6,3326.6,0.00364256]
[1768443148028,0.96357932,3327.8,3326.6,0.00364256]
[1768443148735,0.00450417,3327.5,3326.9,0.00450417]
[1768443148936,0.00450417,3327.5,3326.6,0.00364256]
[1768443149642,0.96357932,3327.4,3326.0,0.96357932]
[1768443150030,0.96357932,3327.4,3326.2,0.96357932]
[1768443150640,0.96357932,3327.4,3326.2,0.96678397]
[1768443151237,0.1503,3327.0,3326.2,0.00320465]
[1768443151440,0.1503,3327.0,3326.0,0.96357932]
[1768443151640,2.71950417,3327.5,3326.3,0.14645253]
[1768443151841,2.71950417,3327.5,3326.3,1.11003185]
[1768443152335,0.00450417,3327.5,3326.3,1.11347638]
[1768443152539,0.00450417,3327.5,3326.3,0.14989706]
[1768443153342,0.96808349,3327.5,3326.3,0.14989706]
[1768443153842,0.96357932,3326.9,3325.8,0.14645253]
[1768443154033,0.96357932,3326.7,3325.7,1.17485114]
[1768443154434,0.96357932,3326.4,3325.7,0.04949678]
[1768443154640,0.9672256,3326.4,3325.7,0.05269931]
[1768443157344,0.00364628,3326.4,3325.7,0.05269931]
[1768443160938,0.96357932,3326.0,3324.7,0.14645253]
[1768443161334,0.00451128,3325.7,3324.7,0.14645253]
[1768443161844,0.00451128,3325.7,3325.0,0.14645253]
[1768443164350,0.9680906,3325.7,3324.7,0.00234622]
[1768443165141,0.00451128,3325.7,3325.1,0.96357932]
[1768443165443,0.00451128,3325.7,3324.9,0.14645253]
[1768443165643,0.00451128,3325.7,3324.1,0.14645253]
[1768443166042,0.15036,3325.6,3324.1,0.14645253]
[1768443166242,0.00451128,3325.7,3324.1,0.14645253]
[1768443166747,0.00451128,3325.7,3324.1,0.14988517]
[1768443176158,0.00451128,3325.7,3324.1,0.30031517]
[1768443176459,0.00451128,3325.7,3324.3,0.14426183]
[1768443180157,0.00451128,3325.7,3324.3,0.29468183]
[1768443180357,0.00451128,3325.7,3324.4,0.14426183]
[1768443181058,0.00451128,3325.7,3324.4,0.29467183]
[1768443181259,0.00451128,3325.7,3324.5,0.14426183]
[1768443184871,0.00364628,3326.4,3324.7,0.14426183]
[1768443185067,0.82372403,3326.3,3324.8,0.14426183]
[1768443185268,0.82372403,3326.2,3324.8,0.14426183]
[1768443185468,0.82372403,3326.1,3324.8,0.14426183]
[1768443185773,0.00364628,3326.4,3324.8,0.14426183]
[1768443185978,0.00451128,3325.9,3325.3,0.14877311]
[1768443187779,0.00364628,3326.4,3325.3,0.14877311]
[1768443188869,0.00451128,3326.2,3325.3,0.14877311]
[1768443194278,0.82355548,3326.1,3325.3,0.00451128]
[1768443194581,0.82349534,3326.0,3325.3,0.00451128]
[1768443194886,0.15484128,3326.2,3324.9,0.14426183]
[1768443195086,0.97383424,3326.1,3324.9,0.14426183]
[1768443195278,0.97383424,3326.0,3324.9,0.14426183]
[1768443195482,0.82349424,3325.9,3324.2,0.14426183]
[1768443195684,0.82349424,3325.8,3324.2,0.14426183]
[1768443195878,0.15035,3325.9,3324.2,0.14426183]
[1768443196085,0.82341162,3325.8,3324.7,0.00451128]
[1768443196289,0.15035,3325.9,3324.7,0.00451128]
[1768443196497,0.82345032,3325.8,3324.7,0.00451128]
[1768443196788,0.15035,3325.9,3324.7,0.00451128]
[1768443196984,0.97380032,3325.8,3324.7,0.00451128]
[1768443197179,0.15035,3325.8,3324.7,0.00451128]
[1768443197584,0.82347625,3325.7,3324.7,0.00451128]
[1768443197785,0.15035,3325.7,3324.7,0.00451128]
[1768443198692,0.96502536,3326.0,3324.7,0.00451128]
[1768443198890,0.82349552,3325.9,3324.7,0.00451128]
[1768443199091,0.82349552,3325.8,3324.7,0.00451128]
[1768443199388,0.82349552,3325.7,3324.7,0.00451128]
[1768443199591,0.15036,3325.5,3324.7,0.00451128]
[1768443202288,0.15037,3325.4,3324.7,0.00451128]
[1768443205482,0.15038,3325.2,3324.1,0.14359951]
[1768443206792,0.15038,3325.1,3324.1,0.14359951]
[1768443208389,0.15039,3325.0,3324.1,0.14359951]
[1768443214492,0.1504,3324.8,3324.1,0.14359951]
[1768443214998,0.1504,3324.7,3324.1,0.14359951]
[1768443215199,0.1504,3324.7,3324.1,0.00343264]
[1768443215900,1.78798666,3325.4,3323.7,0.14016687]
[1768443215901,0.1504,3324.6,3323.7,0.14016687]
[1768443216097,0.00451128,3324.5,3323.7,0.14016687]
[1768443216995,0.00451128,3324.5,3323.7,0.14389256]
[1768443217203,0.15492128,3324.5,3323.7,0.14389256]
[1768443217696,0.00451128,3324.5,3323.7,0.14389256]
[1768443218606,0.15042,3324.3,3323.7,0.14389256]
[1768443219698,0.15042,3324.2,3323.7,0.00372569]
[1768443219896,0.00451128,3324.5,3323.3,0.14016687]
[1768443219897,0.15043,3324.1,3323.3,0.14016687]
[1768443220898,0.15043,3324.1,3323.3,0.14309061]
[1768443221203,0.00451128,3324.5,3323.3,0.14309061]
[1768443222403,0.00451128,3324.5,3323.3,0.14309061]
[1768443229004,0.15492128,3324.5,3323.3,0.14309061]
[1768443233207,0.15041,3324.4,3323.3,0.14309061]
[1768443233506,0.15043,3324.1,3323.3,0.00292374]
[1768443234098,0.00451128,3324.5,3323.3,0.14749687]
[1768443235107,0.15492128,3324.5,3323.3,0.14749687]
[1768443237009,0.15041,3324.4,3323.3,0.14749687]
[1768443241206,0.15041,3324.4,3323.5,0.14457313]
[1768443242213,0.15041,3324.4,3323.3,0.00292374]
[1768443242418,0.15042,3324.3,3323.3,0.00292374]
[1768443242806,0.15042,3324.2,3323.3,0.00292374]
[1768443243008,1.11545536,3324.0,3322.7,0.14457313]
[1768443243917,1.1185867,3324.0,3322.7,0.14700592]
[1768443244509,0.15356134,3324.0,3322.7,0.14700592]
[1768443247416,0.00451128,3324.5,3322.8,0.14457313]
[1768443247614,0.15492128,3324.5,3322.8,0.14457313]
[1768443248419,0.15720039,3324.5,3322.8,0.14457313]
[1768443249523,0.96618946,3324.4,3323.0,0.96618946]
[1768443250223,0.96618946,3323.7,3322.7,0.00243279]
[1768443251421,1.11663946,3323.7,3322.7,0.00243279]
[1768443252319,0.15045,3323.7,3322.7,0.00243279]
[1768443253326,0.96618946,3323.4,3322.7,0.00243279]
[1768443253823,1.11663946,3323.6,3322.7,0.00243279]
[1768443256208,1.25919864,3323.6,3322.7,0.00243279]
[1768443257227,0.96618946,3323.2,3322.1,1.2]
[1768443257629,1.11664946,3323.4,3322.1,1.2]
[1768443258227,1.11664946,3323.4,3322.1,1.20256243]
[1768443260612,0.14145951,3323.3,3322.1,0.00256243]
[1768443260817,1.11664946,3323.4,3321.0,3.74431353]
[1768443260818,0.69437892,3322.3,3321.0,3.74431353]
[1768443261016,0.00451128,3322.0,3321.0,4.71050299]
[1768443261230,0.00451128,3322.0,3320.9,0.29534815]
[1768443261526,0.00451128,3322.0,3321.0,0.96618946]
[1768443261735,0.00711505,3322.0,3321.0,0.97003405]
[1768443263230,0.00711505,3322.0,3321.2,0.96618946]
[1768443263724,0.00711505,3322.0,3321.0,0.97003405]
[1768443264334,0.00711505,3322.0,3321.0,0.00384459]
[1768443266627,0.00711505,3322.0,3321.0,0.97003405]
[1768443266836,0.00711505,3322.0,3321.2,0.96618946]
[1768443267432,0.00711505,3322.0,3321.0,0.00384459]
[1768443270135,0.00711505,3322.0,3321.1,0.96618946]
[1768443271431,0.00711505,3322.0,3321.3,0.96618946]
[1768443271933,0.15048,3322.9,3321.3,0.96618946]
[1768443272137,0.96618946,3322.8,3321.5,0.96618946]
[1768443272341,0.96618946,3322.8,3321.4,0.96618946]
[1768443273034,0.00451128,3322.4,3321.8,0.00451128]
[1768443274323,0.97070074,3322.4,3321.8,0.00451128]
[1768443274934,0.96618946,3322.2,3321.8,0.00451128]
[1768443275239,0.96618946,3322.2,3321.0,0.00384459]
[1768443275632,0.96618946,3321.9,3321.0,0.00384459]
[1768443276640,0.96618946,3322.2,3321.0,0.00384459]
[1768443276833,1.10940283,3322.2,3321.0,0.00384459]
[1768443279546,0.14321337,3322.2,3321.0,0.00384459]
[1768443279742,0.14321337,3322.2,3321.1,0.96618946]
[1768443279949,0.15051,3322.3,3321.1,0.96618946]
[1768443281329,0.15051,3322.3,3321.3,0.96618946]
[1768443281533,0.15051,3322.3,3321.2,0.69437892]
[1768443284737,0.15051,3322.3,3321.2,0.96618946]
[1768443286553,1.11669946,3322.3,3321.0,0.97003405]
[1768443288150,0.15051,3322.3,3321.0,0.00384459]
[1768443288341,0.15051,3322.3,3321.1,0.96618946]
[1768443290151,0.15051,3322.3,3321.0,0.00384459]
[1768443290152,0.00451128,3322.4,3321.6,0.96618946]
[1768443291048,0.00451128,3322.4,3321.8,0.96618946]
[1768443292051,0.00451128,3322.4,3321.6,0.96618946]
[1768443295552,0.00451128,3322.4,3321.4,0.96618946]
[1768443296954,0.00451128,3322.4,3321.2,0.14276286]
[1768443297156,0.00451128,3322.4,3321.5,0.96618946]
[1768443297654,0.00451128,3322.4,3321.2,0.14276286]
[1768443297949,0.00451128,3322.4,3321.7,0.96618946]
[1768443298143,0.00451128,3322.4,3321.9,0.96618946]
[1768443298347,0.00451128,3322.4,3321.7,0.96618946]
[1768443298955,0.00451128,3322.4,3321.5,0.14276286]
[1768443299156,0.00451128,3322.4,3321.6,0.96618946]
[1768443300957,0.00380868,3322.8,3321.6,0.96618946]
[1768443301459,0.96618946,3322.6,3321.2,1.35056]
[1768443301650,0.96618946,3322.6,3321.2,2.31674946]
[1768443301851,0.00451128,3322.2,3321.6,0.00451128]
[1768443302058,0.00451128,3322.2,3321.7,0.96618946]
[1768443302257,0.00380868,3322.8,3321.7,0.96618946]
[1768443303158,0.00451128,3322.6,3321.7,0.96618946]
[1768443303655,0.00451128,3322.6,3322.0,0.96618946]
[1768443303857,0.28930419,3323.5,3322.0,0.96618946]
[1768443303858,0.15045,3323.5,3322.3,0.96618946]
[1768443304349,0.96618946,3323.8,3322.3,0.96618946]
[1768443304550,0.96618946,3323.6,3322.1,0.96618946]
[1768443304754,0.97070074,3323.2,3321.9,0.96618946]
[1768443305559,0.97070074,3323.2,3321.6,0.14727414]
[1768443305753,0.96618946,3323.0,3321.6,0.14727414]
[1768443305964,0.96618946,3322.8,3321.6,0.00451128]
[1768443306655,0.29383547,3323.2,3321.6,0.00451128]
[1768443306862,0.96618946,3322.8,3321.6,0.00451128]
[1768443307359,1.10504365,3322.3,3321.0,0.00384459]
[1768443307553,0.96618946,3322.1,3321.0,0.00384459]
[1768443307751,0.13885419,3322.2,3321.0,0.00384459]
[1768443308157,0.13885419,3322.6,3321.0,0.00384459]
[1768443308355,0.96618946,3322.2,3321.0,0.00384459]
[1768443308561,1.10504365,3322.0,3321.5,0.00451128]
[1768443308863,0.13885419,3321.9,3321.0,0.00384459]
[1768443310059,0.13885419,3321.9,3321.1,0.00451128]
[1768443312765,0.13885419,3322.3,3321.1,0.00451128]
[1768443312965,0.13885419,3322.8,3321.1,0.00451128]
[1768443314053,0.13885419,3322.8,3321.3,0.96757888]
[1768443315260,0.13885419,3322.8,3321.2,0.14276286]
[1768443315462,0.13885419,3322.8,3321.1,0.00451128]
[1768443315771,0.28934419,3322.8,3321.1,0.00451128]
[1768443316159,0.13885419,3322.7,3321.1,0.00451128]
[1768443316861,0.28934419,3322.7,3321.1,0.00451128]
[1768443317159,0.28935419,3322.5,3321.1,0.00451128]
[1768443317367,0.13885419,3322.4,3321.1,0.00451128]
[1768443321471,0.14454373,3323.1,3321.5,0.96757888]
[1768443321676,0.14454373,3322.9,3321.1,0.15507128]
[1768443321966,0.13674949,3322.8,3321.1,0.00451128]
[1768443322179,0.28724949,3322.6,3321.1,0.00451128]
[1768443322476,0.13674949,3322.5,3321.1,0.00451128]
[1768443322872,0.82302973,3322.4,3321.1,0.00451128]
[1768443323087,0.82302973,3322.3,3321.1,0.00451128]
[1768443323268,0.13674949,3322.5,3321.1,0.00451128]
[1768443323468,0.82301533,3322.4,3321.1,0.00451128]
[1768443323668,0.82301533,3322.3,3321.1,0.00451128]
[1768443323868,0.13674949,3322.5,3321.1,0.00451128]
[1768443324076,0.82294377,3322.4,3321.1,0.00451128]
[1768443324275,0.82294377,3322.3,3321.1,0.00451128]
[1768443324578,0.13674949,3322.5,3321.1,0.00451128]
[1768443324872,0.82295382,3322.4,3321.1,0.00451128]
[1768443325072,0.13674949,3322.5,3321.1,0.00451128]
[1768443325276,0.82299731,3322.4,3321.1,0.00451128]
[1768443325478,0.13674949,3322.5,3321.1,0.00451128]
[1768443325677,0.82299585,3322.4,3321.1,0.00451128]
[1768443325867,0.13674949,3322.5,3321.1,0.00451128]
[1768443326877,0.82279649,3322.4,3321.1,0.00451128]
[1768443327081,0.13674949,3322.5,3321.1,0.00451128]
[1768443327280,0.82280531,3322.4,3321.1,0.00451128]
[1768443327480,0.13674949,3322.5,3321.1,0.00451128]
[1768443327682,0.82279855,3322.4,3321.1,0.00451128]
[1768443327876,0.13674949,3322.5,3321.1,0.00451128]
[1768443328175,0.82279477,3322.4,3321.1,0.00451128]
[1768443328474,0.13674949,3322.5,3321.1,0.00451128]
[1768443328674,0.82278717,3322.4,3321.1,0.00451128]
[1768443328874,0.13674949,3322.5,3321.1,0.00451128]
[1768443329073,0.82278586,3322.4,3321.1,0.00451128]
[1768443329279,0.13674949,3322.5,3321.1,0.00451128]
[1768443330776,0.82261008,3322.4,3321.1,0.00451128]
[1768443330978,0.13674949,3322.5,3321.1,0.00451128]
[1768443331272,0.82260653,3322.4,3321.1,0.00451128]
[1768443331577,0.13674949,3322.5,3321.1,0.00451128]
[1768443331776,0.13674949,3322.3,3321.1,0.00451128]
[1768443332085,0.13674949,3322.1,3321.1,0.00451128]
[1768443332966,0.13674949,3321.9,3321.0,0.00384459]
[1768443333376,0.13674949,3321.7,3321.0,0.00384459]
[1768443336086,0.13674949,3322.6,3321.0,0.00384459]
[1768443336278,0.15049,3322.7,3321.0,0.00384459]
[1768443336279,0.13674949,3322.4,3321.0,0.00384459]
[1768443336487,0.82248079,3322.3,3321.0,0.00384459]
[1768443336683,0.13674949,3322.2,3321.0,0.00384459]
[1768443336986,2.668,3322.9,3321.0,0.00384459]
[1768443336987,0.13674949,3322.0,3321.0,0.00384459]
[1768443337884,0.13674949,3322.5,3321.0,0.00384459]
[1768443338181,0.82253294,3322.4,3321.0,0.00384459]
[1768443338389,0.82253294,3322.3,3321.0,0.00384459]
[1768443338584,0.13674949,3322.5,3321.0,0.00384459]
[1768443338890,0.82260721,3322.4,3321.0,0.00384459]
[1768443339089,0.82260721,3322.3,3321.0,0.00384459]
[1768443339289,0.13674949,3322.5,3321.0,0.00384459]
[1768443339484,0.82262282,3322.4,3321.0,0.00384459]
[1768443339686,0.82262282,3322.3,3321.0,0.00384459]
[1768443339988,0.15049,3322.8,3321.0,0.14146215]
[1768443340289,0.82262669,3322.7,3321.0,0.14146215]
[1768443340588,0.82262669,3322.6,3321.0,0.14146215]
[1768443340788,0.82262669,3322.5,3321.0,0.14146215]
[1768443340990,0.82262669,3322.4,3321.0,0.14146215]
[1768443341191,0.82262669,3322.3,3321.0,0.14146215]
[1768443341380,0.13674949,3322.7,3321.0,0.14146215]
[1768443341582,0.82268783,3322.6,3321.0,0.14146215]
[1768443341782,0.82268783,3322.5,3321.0,0.14146215]
[1768443342082,0.82268783,3322.4,3321.0,0.14146215]
[1768443342282,0.13674949,3322.7,3321.0,0.14146215]
[1768443342482,0.82268654,3322.6,3321.0,0.14146215]
[1768443342689,0.82268654,3322.5,3321.0,0.14146215]
[1768443342885,0.13674949,3323.1,3321.6,0.96757888]
[1768443343087,0.82284597,3323.0,3321.6,0.96757888]
[1768443343282,0.82284597,3322.9,3321.6,0.96757888]
[1768443343486,0.82284597,3322.8,3321.6,0.96757888]
[1768443343691,0.13674949,3323.1,3321.6,0.96757888]
[1768443344983,0.13674949,3323.1,3321.5,0.15054]
[1768443345189,0.00451128,3323.2,3321.5,0.15054]
[1768443345190,0.13674949,3322.9,3321.5,0.15054]
[1768443345603,0.13674949,3322.9,3321.2,4.87740637]
[1768443345604,0.13674949,3322.9,3321.2,2.71082749]
[1768443345891,0.13674949,3322.7,3321.0,0.00384459]
[1768443346090,0.13674949,3322.7,3321.1,0.96757888]
[1768443346398,0.15047,3323.1,3321.1,0.96757888]
[1768443346399,0.13674949,3323.0,3321.3,0.13761756]
[1768443346599,0.82285567,3322.9,3321.3,0.13761756]
[1768443346797,0.13674949,3323.0,3321.3,0.13761756]
[1768443346798,0.82285567,3322.8,3321.3,0.13761756]
[1768443347097,0.13674949,3323.0,3321.3,0.13761756]
[1768443347298,0.82270178,3322.9,3321.3,0.13761756]
[1768443347490,0.82270178,3322.8,3321.3,0.13761756]
[1768443347686,0.13674949,3323.0,3321.3,0.13761756]
[1768443347888,0.13674949,3322.8,3321.2,0.15056]
[1768443348097,0.13674949,3322.6,3321.2,0.15056]
[1768443352098,0.14086202,3323.0,3321.2,0.15056]
[1768443352302,0.82228351,3322.9,3321.2,0.15056]
[1768443352501,0.82228351,3322.8,3321.2,0.15056]
[1768443352700,0.82228351,3322.7,3321.2,0.15056]
[1768443352899,0.14086202,3322.9,3321.2,0.15056]
[1768443353113,0.82229631,3322.8,3321.2,0.15056]
[1768443353305,0.82229631,3322.7,3321.2,0.15056]
[1768443353511,0.14086202,3322.9,3321.2,0.15056]
[1768443353808,0.96315465,3322.8,3321.2,0.15056]
[1768443353999,0.82229263,3322.7,3321.2,0.15056]
[1768443354188,0.14086202,3322.8,3321.2,0.15056]
[1768443354402,0.96314646,3322.7,3321.2,0.15056]
[1768443354586,0.14086202,3322.7,3321.2,0.15056]
[1768443355703,0.82226446,3322.6,3321.2,0.15056]
[1768443355905,0.14086202,3322.7,3321.2,0.15056]
[1768443356205,0.82226428,3322.6,3321.2,0.28685349]
[1768443356402,0.29133202,3323.1,3321.2,0.28685349]
[1768443356700,0.9631315,3323.0,3321.2,0.28685349]
[1768443357005,0.82226948,3322.9,3321.2,0.28685349]
[1768443357208,0.82226948,3322.8,3321.2,0.28685349]
[1768443357399,0.82226948,3322.7,3321.2,0.28685349]
[1768443357599,0.82226948,3322.6,3321.2,0.28685349]
[1768443357898,0.14086202,3323.0,3321.2,0.28685349]
[1768443358202,0.14086202,3322.8,3321.2,0.15056]
[1768443358404,0.96312038,3322.7,3321.2,0.15056]
[1768443358702,0.82225836,3322.6,3321.2,0.15056]
[1768443359008,0.14086202,3322.7,3321.2,0.15056]
[1768443359305,0.96315017,3322.6,3321.2,0.15056]
[1768443359502,0.14086202,3322.6,3321.2,0.15056]
[1768443360503,0.14086202,3322.4,3321.0,0.00384459]
[1768443362407,0.14086202,3322.2,3321.0,0.00384459]
[1768443362607,0.14086202,3322.0,3321.0,0.00384459]
[1768443363613,0.14086202,3322.0,3320.4,3.012]
[1768443363901,0.00451128,3321.5,3320.4,3.012]
[1768443364607,0.00451128,3321.5,3320.4,3.01473602]
[1768443365009,0.00451128,3321.5,3320.4,3.30161951]
[1768443365205,0.14086202,3322.5,3320.6,0.28687349]
[1768443365412,0.82198458,3322.4,3320.7,0.13629349]
[1768443365602,0.82198458,3322.3,3320.8,0.13629349]
[1768443365797,0.14086202,3322.5,3320.8,0.13629349]
[1768443365999,0.82200031,3322.4,3320.8,0.13629349]
[1768443366199,0.00451128,3321.9,3321.3,0.00451128]
[1768443373308,0.00451128,3321.9,3321.3,0.97159707]
[1768443373818,0.00451128,3321.9,3321.3,0.00451128]
[1768443379106,0.14086202,3322.9,3321.7,0.96708579]
[1768443379307,0.14086202,3322.9,3322.0,0.96708579]
[1768443379508,0.14086202,3323.5,3322.6,0.96708579]
[1768443379716,0.00228522,3323.6,3322.6,0.96708579]
[1768443380210,0.00451128,3323.4,3322.2,0.15051]
[1768443380407,0.00451128,3323.4,3322.3,0.96708579]
[1768443380717,0.00451128,3323.4,3322.6,0.96708579]
[1768443381423,0.00451128,3323.4,3322.2,0.28898833]
[1768443381823,0.14086202,3324.0,3322.2,0.28898833]
[1768443382125,0.14086202,3324.0,3322.3,0.14410485]
[1768443382314,0.14466042,3324.5,3322.5,0.14410485]
[1768443382710,0.14850062,3324.5,3322.5,0.14410485]
[1768443382909,0.00451128,3323.8,3322.5,0.14410485]
[1768443383127,0.00451128,3323.8,3323.2,0.00451128]
[1768443383317,0.00451128,3323.8,3323.2,0.00774345]
[1768443385525,0.14850062,3324.5,3323.2,0.00774345]
[1768443385916,0.0038402,3324.5,3323.2,0.00774345]
[1768443386622,0.00451128,3324.2,3323.2,0.00774345]
[1768443388525,0.0038402,3324.5,3323.2,0.1518483]
[1768443388725,0.14466042,3326.2,3324.0,0.14410485]
[1768443388921,6.86836193,3327.1,3324.7,0.1504]
[1768443388922,0.14466042,3326.6,3324.7,0.1504]
[1768443389227,0.14466042,3326.6,3324.7,1.3494]
[1768443389428,0.00451128,3326.0,3325.3,0.00451128]
[1768443389720,0.0076787,3326.0,3325.3,0.00451128]
[1768443389924,0.0076787,3326.0,3324.6,0.132]
[1768443389925,0.15233912,3326.0,3324.6,0.132]
[1768443390925,0.0076787,3326.0,3325.0,0.00451128]
[1768443392830,0.14466042,3327.0,3325.3,0.14410485]
[1768443393129,0.14466042,3327.0,3325.3,0.29447485]
[1768443393521,0.14466042,3327.5,3325.5,0.14410485]
[1768443393731,0.14777269,3327.5,3325.6,0.14410485]
[1768443394027,0.14777269,3327.5,3325.7,0.90510485]
[1768443394630,0.14777269,3327.5,3325.7,0.761]
[1768443394831,0.0029838,3326.9,3325.7,0.761]
[1768443395722,0.14764422,3326.9,3325.6,0.00282663]
[1768443398141,0.0029838,3326.9,3325.6,0.00282663]
[1768443398433,0.14764422,3326.9,3325.6,0.00282663]
[1768443398931,0.0029838,3326.9,3325.6,0.00282663]
[1768443400832,0.14764422,3326.9,3325.6,0.00282663]
[1768443404934,0.14466042,3326.7,3325.6,0.00282663]
[1768443405133,0.30367446,3326.6,3325.0,0.00451128]
[1768443405328,0.14466042,3326.4,3325.0,0.00451128]
[1768443406135,0.14466042,3326.4,3325.0,0.0081159]
[1768443417146,0.82080092,3326.3,3325.0,0.0081159]
[1768443417447,0.14466042,3326.4,3325.0,0.0081159]
[1768443417740,0.13626486,3326.7,3325.0,1.4865659]
[1768443417945,0.13626486,3326.7,3325.0,1.61849405]
[1768443418449,0.13626486,3326.7,3325.0,1.76888405]
[1768443419143,0.0029838,3326.9,3325.5,1.47845]
[1768443419546,0.0029838,3326.9,3325.4,0.28228815]
[1768443420246,0.0029838,3326.9,3325.6,0.15036]
[1768443420446,0.13937713,3327.5,3326.0,1.47845]
[1768443421338,0.00311227,3327.5,3326.0,1.61037815]
[1768443421539,0.00311227,3327.5,3326.1,0.13192815]
[1768443421734,0.15021,3328.9,3326.5,1.47845]
[1768443421941,0.13626486,3328.8,3326.5,1.47845]
[1768443422247,0.13626486,3328.6,3327.3,0.00451128]
[1768443423147,0.139944,3328.6,3327.3,0.00451128]
[1768443423951,0.13626486,3328.4,3327.3,0.00451128]
[1768443425346,0.13626486,3328.4,3326.1,3.13892815]
[1768443425549,0.13626486,3328.2,3326.1,3.007]
[1768443426150,0.15023,3328.4,3326.5,1.61037815]
[1768443426341,0.13626486,3328.5,3327.1,0.00451128]
[1768443428363,0.00451128,3328.1,3327.1,0.00451128]
[1768443429255,0.00367914,3328.6,3327.1,0.28672943]
[1768443430450,0.00367914,3328.6,3327.2,0.28220815]
[1768443430650,0.13626486,3329.5,3327.5,1.47845]
[1768443430948,0.13626486,3329.9,3328.0,1.6287]
[1768443431257,0.13626486,3329.9,3328.6,0.00451128]
[1768443431753,0.13896986,3329.9,3328.6,0.00757421]
[1768443433244,0.002705,3329.9,3328.6,0.00757421]
[1768443433856,0.13626486,3330.4,3328.6,0.13950236]
[1768443434855,0.13947067,3330.4,3328.6,0.13950236]
[1768443436853,0.13947067,3330.4,3328.6,0.00757421]
[1768443437357,0.13626486,3330.3,3328.6,0.00757421]
[1768443439459,0.13626486,3330.0,3327.8,3.006]
[1768443440456,0.13626486,3330.0,3327.8,3.00959247]
[1768443440657,0.00320581,3330.4,3327.8,3.00959247]
[1768443440658,0.1408647,3329.2,3327.8,3.00959247]
[1768443441559,0.1408647,3329.2,3327.8,0.00359247]
[1768443442955,0.1408647,3329.2,3328.2,0.00451128]
[1768443443849,0.15021,3329.0,3327.8,0.00359247]
[1768443444051,0.13341668,3328.7,3326.6,0.13421423]
[1768443444951,0.13341668,3328.7,3327.3,0.00451128]
[1768443447163,0.13341668,3328.2,3326.6,0.00270465]
[1768443447665,0.13341668,3328.1,3326.6,0.00270465]
[1768443447853,0.28366668,3328.1,3326.6,0.00270465]
[1768443448056,0.13341668,3328.0,3326.6,0.00270465]
[1768443448261,0.13664002,3328.0,3326.6,0.00270465]
[1768443448469,0.13341668,3326.5,3324.5,2.66617435]
[1768443448657,0.13341668,3326.5,3324.4,0.13421423]
[1768443449365,0.00451128,3325.8,3325.1,0.0030075]
[1768443450060,0.00451128,3325.8,3324.4,0.1366508]
[1768443450459,0.00451128,3325.8,3324.4,0.00243657]
[1768443450769,0.13792796,3325.8,3324.4,0.00243657]
[1768443452072,0.00451128,3325.8,3324.4,0.00243657]
[1768443456370,0.00451128,3325.8,3324.5,0.13421423]
[1768443456769,0.13341668,3326.8,3324.5,0.13421423]
[1768443457572,0.13341668,3326.8,3324.8,0.13421423]
[1768443457875,0.00451128,3326.1,3324.8,0.13421423]
[1768443458663,0.00451128,3326.1,3324.9,0.28460423]
[1768443458976,0.00451128,3326.1,3325.2,0.00451128]
[1768443466677,0.13341668,3326.8,3325.2,0.00451128]
[1768443467569,0.00451128,3326.3,3325.2,0.00451128]
[1768443469071,0.00451128,3326.3,3325.2,0.13872551]
[1768443470380,0.00451128,3326.3,3325.2,0.28909551]
[1768443471171,0.00451128,3326.3,3325.2,0.15488128]
[1768443472180,0.00451128,3326.3,3325.2,0.29730482]
[1768443478577,0.00451128,3326.3,3325.2,0.15488128]
[1768443481690,0.00451128,3326.3,3325.2,0.00451128]
[1768443481888,0.13564865,3326.3,3325.2,0.00451128]
[1768443482587,0.00451128,3326.3,3325.3,0.14242354]
[1768443482886,3.76240812,3328.0,3325.8,0.15035]
[1768443482887,0.13113737,3327.6,3325.8,0.15035]
[1768443483072,0.94819076,3327.5,3325.9,0.15034]
[1768443483276,0.13113737,3327.5,3325.9,0.29276354]
[1768443483884,0.00451128,3327.0,3325.9,0.29276354]
[1768443486994,0.13113737,3327.9,3326.1,0.14242354]
[1768443487991,0.00451128,3327.3,3326.1,0.14242354]
[1768443488691,0.00451128,3327.3,3326.2,0.15033]
[1768443490391,0.00451128,3327.3,3326.0,1.195]
[1768443494595,0.13564865,3327.3,3325.6,1.34536]
[1768443496397,0.00451128,3327.3,3325.8,0.14242354]
[1768443496787,0.00451128,3327.3,3325.8,0.29277354]
[1768443497096,0.00451128,3327.3,3325.9,0.14242354]